fUSD/lending_fUSD_20240125
["ID","MTS","AMOUNT","RATE_DAILY","PERIOD"]
[312673019,1706142680765,-689.7,0.00050958,31]
[312673020,1706142680774,-500.0,0.00050958,31]
[312673021,1706142680784,-500.0,0.00050958,31]
[312673022,1706142680795,-500.0,0.00050958,31]
[312673023,1706142680806,-500.0,0.00050958,31]
[312673024,1706142680818,-688.21,0.00050958,31]
[312673025,1706142680828,-500.0,0.00050958,2]
[312673026,1706142680838,-500.0,0.00050958,31]
[312673027,1706142680849,-500.0,0.00050958,31]
[312673028,1706142680858,-527.15,0.00050958,31]
[312673029,1706142680868,-500.0,0.00050958,2]
[312673030,1706142680878,-500.0,0.00050958,31]
[312673031,1706142680887,-500.0,0.00050958,31]
[312673032,1706142680898,-556.3,0.00050958,31]
[312673033,1706142680908,-976.84,0.00050958,7]
[312673034,1706142680917,-500.0,0.00050958,31]
[312673035,1706142680926,-565.89,0.00050958,31]
[312673036,1706142680936,-540.72159271,0.00050958,31]
[312673037,1706142680945,-233.01207387,0.00050958,31]
[312673038,1706142680955,-500.0,0.00050958,31]
[312673039,1706142680965,-500.0,0.00050958,31]
[312673040,1706142680975,-500.0,0.00050958,31]
[312673041,1706142680984,-1000.0,0.00050958,2]
[312673042,1706142680994,-500.0,0.00050958,31]
[312673043,1706142681003,-500.0,0.00050958,31]
[312673044,1706142681012,-500.0,0.00050958,31]
[312673045,1706142681022,-500.0,0.00050958,31]
[312673046,1706142681032,-500.0,0.00050958,31]
[312673047,1706142681042,-500.0,0.00050958,31]
[312673048,1706142681052,-500.0,0.00050958,31]
[312673049,1706142681062,-500.0,0.00050958,31]
[312673050,1706142681071,-500.0,0.00050958,31]
[312673051,1706142681081,-500.0,0.00050958,31]
[312673052,1706142681090,-500.0,0.00050958,31]
[312673053,1706142681100,-500.0,0.00050958,31]
[312673054,1706142681110,-500.0,0.00050958,31]
[312673055,1706142681119,-781.79,0.00050958,31]
[312673056,1706142681128,-500.0,0.00050958,31]
[312673057,1706142681137,-500.0,0.00050958,31]
[312673058,1706142681147,-500.0,0.00050958,31]
[312673059,1706142681156,-500.0,0.00050958,31]
[312673060,1706142681166,-500.0,0.00050958,31]
[312673061,1706142681175,-500.0,0.00050958,31]
[312673062,1706142681185,-500.0,0.00050958,31]
[312673063,1706142681194,-500.0,0.00050958,31]
[312673064,1706142681203,-500.0,0.00050958,31]
[312673065,1706142681213,-1179.82,0.00050958,31]
[312673066,1706142681222,-3431.79,0.00050958,15]
[312673067,1706142681231,-500.0,0.00050958,31]
[312673068,1706142681241,-171.54361656,0.00050958,31]
[312673069,1706142681251,-568.5,0.00050958,31]
[312673070,1706142681260,-500.0,0.00050958,31]
[312673071,1706142681270,-500.0,0.00050958,31]
[312673072,1706142681279,-1640.43,0.00050958,31]
[312673073,1706142681289,-500.0,0.00050958,31]
[312673074,1706142681298,-500.0,0.00050958,31]
[312673075,1706142681311,-500.0,0.00050958,31]
[312673076,1706142681321,-500.0,0.00050958,31]
[312673077,1706142681330,-599.18,0.00050958,31]
[312673078,1706142681340,-500.0,0.00050958,31]
[312673079,1706142681349,-500.0,0.00050958,31]
[312673080,1706142681358,-826.78,0.00050958,120]
[312673081,1706142681367,-3450.92,0.00050958,31]
[312673082,1706142681376,-500.0,0.00050958,31]
[312673083,1706142681386,-500.0,0.00050958,31]
[312673084,1706142681395,-500.0,0.00050958,31]
[312673085,1706142681405,-500.0,0.00050958,31]
[312673086,1706142681414,-500.0,0.00050958,31]
[312673087,1706142681423,-328.81440759,0.00050958,31]
[312673088,1706142681432,-500.0,0.00050958,31]
[312673089,1706142681442,-500.0,0.00050958,31]
[312673090,1706142681451,-500.0,0.00050958,31]
[312673091,1706142681461,-500.0,0.00050958,31]
[312673092,1706142681470,-549.31,0.00050958,31]
[312673093,1706142681479,-500.0,0.00050958,31]
[312673094,1706142681488,-500.0,0.00050958,31]
[312673095,1706142681498,-500.0,0.00050958,31]
[312673096,1706142681507,-951.5,0.00050958,31]
[312673097,1706142681516,-500.0,0.00050958,31]
[312673098,1706142681526,-500.0,0.00050958,31]
[312673099,1706142681535,-500.0,0.00050958,31]
[312673100,1706142681544,-506.14,0.00050958,31]
[312673101,1706142681555,-500.0,0.00050958,31]
[312673102,1706142681564,-500.0,0.00050958,31]
[312673103,1706142681574,-500.0,0.00050958,31]
[312673104,1706142681583,-500.0,0.00050958,31]
[312673105,1706142681593,-500.0,0.00050958,31]
[312673106,1706142681603,-500.0,0.00050958,31]
[312673107,1706142681612,-500.0,0.00050958,31]
[312673108,1706142681623,-500.0,0.00050958,31]
[312673109,1706142681632,-500.0,0.00050958,31]
[312673110,1706142681642,-500.0,0.00050958,31]
[312673111,1706142681651,-500.0,0.00050958,31]
[312673112,1706142681661,-500.0,0.00050958,31]
[312673113,1706142681671,-500.0,0.00050958,31]
[312673114,1706142681680,-500.0,0.00050958,31]
[312673115,1706142681690,-586.01,0.00050958,31]
[312673116,1706142681699,-610.51,0.00050958,2]
[312673117,1706142681709,-500.0,0.00050958,31]
[312673118,1706142681718,-500.0,0.00050958,31]
[312673119,1706142681728,-1518.82,0.00050958,2]
[312673120,1706142681738,-787.32,0.00050958,31]
[312673121,1706142681747,-500.0,0.00050958,31]
[312673122,1706142681757,-322.83257875,0.00050958,31]
[312673123,1706142681766,-500.0,0.00050958,31]
[312673124,1706142681775,-500.0,0.00050958,31]
[312673125,1706142681785,-696.9,0.00050958,31]
[312673126,1706142681801,-500.0,0.00050958,31]
[312673127,1706142681813,-500.0,0.00050958,120]
[312673128,1706142681824,-500.0,0.00050958,31]
[312673129,1706142681833,-839.16,0.00050958,31]
[312673130,1706142681844,-949.05,0.00050958,31]
[312673131,1706142681853,-1090.8,0.00050958,7]
[312673132,1706142681862,-500.0,0.00050958,31]
[312673133,1706142681871,-500.0,0.00050958,31]
[312673134,1706142681882,-500.0,0.00050958,31]
[312673135,1706142681892,-646.73158928,0.00050958,31]
[312673136,1706142681901,-500.0,0.00050958,31]
[312673137,1706142681911,-500.0,0.00050958,31]
[312673138,1706142681920,-500.0,0.00050958,31]
[312673139,1706142681929,-500.0,0.00050958,31]
[312673140,1706142681939,-500.0,0.00050958,31]
[312673141,1706142681947,-500.0,0.00050958,31]
[312673142,1706142681957,-500.0,0.00050958,31]
[312673143,1706142681967,-500.0,0.00050958,31]
[312673144,1706142681976,-500.0,0.00050958,31]
[312673145,1706142681985,-500.0,0.00050958,31]
[312673146,1706142681994,-500.0,0.00050958,31]
[312673147,1706142682004,-500.0,0.00050958,31]
[312673148,1706142682013,-500.0,0.00050958,31]
[312673149,1706142682023,-500.0,0.00050958,31]
[312673150,1706142682032,-500.0,0.00050958,31]
[312673151,1706142682041,-500.0,0.00050958,31]
[312673152,1706142682051,-500.0,0.00050958,31]
[312673153,1706142682061,-500.0,0.00050958,31]
[312673154,1706142682071,-569.39,0.00050958,31]
[312673155,1706142682080,-500.0,0.00050958,31]
[312673156,1706142682090,-500.0,0.00050958,31]
[312673157,1706142682099,-500.0,0.00050958,31]
[312673158,1706142682109,-500.0,0.00050958,31]
[312673159,1706142682118,-500.0,0.00050958,31]
[312673160,1706142682128,-500.0,0.00050958,31]
[312673161,1706142682137,-500.0,0.00050958,31]
[312673162,1706142682147,-500.0,0.00050958,31]
[312673163,1706142682156,-500.0,0.00050958,31]
[312673164,1706142682166,-500.0,0.00050958,31]
[312673165,1706142682176,-500.0,0.00050958,31]
[312673166,1706142682185,-500.0,0.00050958,31]
[312673167,1706142682194,-500.0,0.00050958,31]
[312673168,1706142682204,-500.0,0.00050958,31]
[312673169,1706142682213,-500.0,0.00050958,31]
[312673170,1706142682222,-500.0,0.00050958,31]
[312673171,1706142682232,-500.0,0.00050958,31]
[312673172,1706142682241,-500.0,0.00050958,31]
[312673173,1706142682251,-500.0,0.00050958,31]
[312673174,1706142682260,-1012.49,0.00050958,31]
[312673175,1706142682270,-500.0,0.00050958,31]
[312673176,1706142682279,-500.0,0.00050958,31]
[312673177,1706142682289,-500.0,0.00050958,31]
[312673178,1706142682299,-500.0,0.00050958,31]
[312673179,1706142682310,-500.0,0.00050958,31]
[312673180,1706142682319,-500.0,0.00050958,31]
[312673181,1706142682328,-500.0,0.00050958,31]
[312673182,1706142682338,-500.0,0.00050958,31]
[312673183,1706142682406,-799.68,0.00050958,31]
[312673184,1706142682415,-500.0,0.00050958,31]
[312673185,1706142682425,-500.0,0.00050958,31]
[312673186,1706142682434,-500.0,0.00050958,31]
[312673187,1706142682444,-500.0,0.00050958,31]
[312673188,1706142682452,-500.0,0.00050958,31]
[312673189,1706142682462,-500.0,0.00050958,31]
[312673190,1706142682471,-500.0,0.00050958,31]
[312673191,1706142682480,-543.8,0.00050958,31]
[312673192,1706142682489,-500.0,0.00050958,31]
[312673193,1706142682499,-500.0,0.00050958,31]
[312673194,1706142682508,-500.0,0.00050958,31]
[312673195,1706142682516,-986.07,0.00050958,31]
[312673196,1706142682526,-500.0,0.00050958,31]
[312673197,1706142682535,-500.0,0.00050958,31]
[312673198,1706142682544,-500.0,0.00050958,31]
[312673199,1706142682554,-500.0,0.00050958,31]
[312673200,1706142682563,-500.0,0.00050958,31]
[312673201,1706142682572,-1153.66,0.00050958,31]
[312673202,1706142682581,-500.0,0.00050958,31]
[312673203,1706142682591,-516.65,0.00050958,31]
[312673204,1706142682600,-500.0,0.00050958,31]
[312673205,1706142682610,-500.0,0.00050958,31]
[312673206,1706142682619,-1241.77,0.00050958,31]
[312673207,1706142682629,-500.0,0.00050958,31]
[312673208,1706142682639,-500.0,0.00050958,31]
[312673209,1706142682649,-500.0,0.00050958,31]
[312673210,1706142682658,-500.0,0.00050958,31]
[312673211,1706142682667,-500.0,0.00050958,31]
[312673212,1706142682676,-500.0,0.00050958,31]
[312673213,1706142682686,-500.0,0.00050958,31]
[312673214,1706142682695,-653.39,0.00050958,31]
[312673215,1706142682705,-500.0,0.00050958,31]
[312673216,1706142682714,-836.07,0.00050958,31]
[312673217,1706142682723,-250.0,0.00050958,31]
[312673218,1706142682733,-756.21,0.00050958,31]
[312673219,1706142682742,-515.25,0.00050958,31]
[312673220,1706142682752,-500.0,0.00050958,31]
[312673221,1706142682762,-1013.31,0.00050958,31]
[312673222,1706142682771,-500.0,0.00050958,31]
[312673223,1706142682781,-616.32,0.00050958,31]
[312673224,1706142682790,-528.69,0.00050958,31]
[312673225,1706142682800,-500.0,0.00050958,31]
[312673226,1706142682811,-500.0,0.00050958,31]
[312673227,1706142682822,-956.92,0.00050958,31]
[312673228,1706142682832,-500.0,0.00050958,31]
[312673229,1706142682843,-186.84,0.00050958,31]
[312673230,1706142682853,-500.0,0.00050958,31]
[312673231,1706142682862,-998.0,0.00050958,31]
[312673232,1706142682872,-500.0,0.00050958,31]
[312673233,1706142682882,-682.58,0.00050958,31]
[312673234,1706142682891,-500.0,0.00050958,31]
[312673235,1706142682901,-4855.5,0.00050958,31]
[312673236,1706142682911,-500.0,0.00050958,31]
[312673237,1706142682921,-500.0,0.00050958,31]
[312673238,1706142682930,-500.0,0.00050958,31]
[312673239,1706142682939,-2993.87,0.00050958,31]
[312673240,1706142682948,-500.0,0.00050958,31]
[312673241,1706142682958,-500.0,0.00050958,31]
[312673242,1706142682968,-500.0,0.00050958,31]
[312673243,1706142682978,-5084.18,0.00050958,5]
[312673244,1706142682987,-1768.63,0.00050958,31]
[312673245,1706142682996,-900.81,0.00050958,31]
[312673246,1706142683005,-531.92,0.00050958,31]
[312673247,1706142683015,-1000.0,0.00050958,7]
[312673248,1706142683024,-500.0,0.00050958,31]
[312673249,1706142683034,-500.0,0.00050958,31]
[312673250,1706142683043,-500.0,0.00050958,31]
[312673251,1706142683053,-801.09,0.00050958,31]
[312673252,1706142683063,-500.0,0.00050958,31]
[312673253,1706142683072,-500.0,0.00050958,31]
[312673254,1706142683082,-500.0,0.00050958,31]
[312673255,1706142683091,-524.49,0.00050958,31]
[312673256,1706142683101,-500.0,0.00050958,31]
[312673257,1706142683110,-500.0,0.00050958,31]
[312673258,1706142683119,-500.0,0.00050958,31]
[312673259,1706142683129,-500.0,0.00050958,31]
[312673260,1706142683139,-524.16492679,0.00050958,31]
[312673261,1706142683148,-544.16,0.00050958,31]
[312673262,1706142683158,-2294.01,0.00050958,31]
[312673263,1706142683168,-500.0,0.00050958,31]
[312673264,1706142683178,-500.0,0.00050958,31]
[312673265,1706142683187,-500.0,0.00050958,31]
[312673266,1706142683197,-671.26,0.00050958,31]
[312673267,1706142683206,-583.12,0.00050958,31]
[312673268,1706142683216,-830.43,0.00050958,31]
[312673269,1706142683226,-652.75,0.00050958,31]
[312673270,1706142683235,-556.8,0.00050958,31]
[312673271,1706142683245,-500.0,0.00050958,31]
[312673272,1706142683254,-500.0,0.00050958,31]
[312673273,1706142683264,-545.42,0.00050958,31]
[312673274,1706142683273,-2589.2,0.00050958,31]
[312673275,1706142683283,-541.32,0.00050958,31]
[312673276,1706142683292,-500.0,0.00050958,31]
[312673277,1706142683302,-545.58,0.00050958,31]
[312673278,1706142683312,-500.0,0.00050958,31]
[312673279,1706142683321,-586.96,0.00050958,31]
[312673280,1706142683330,-659.09,0.00050958,31]
[312673281,1706142683339,-2351.31,0.00050958,31]
[312673282,1706142683349,-1206.46,0.00050958,31]
[312673283,1706142683358,-500.0,0.00050958,31]
[312673284,1706142683367,-583.57,0.00050958,31]
[312673285,1706142683376,-524.43,0.00050958,31]
[312673286,1706142683385,-500.0,0.00050958,31]
[312673287,1706142683395,-596.67,0.00050958,31]
[312673288,1706142683405,-966.39,0.00050958,31]
[312673289,1706142683414,-500.0,0.00050958,31]
[312673290,1706142683423,-612.43,0.00050958,31]
[312673291,1706142683433,-500.0,0.00050958,31]
[312673292,1706142683442,-683.16,0.00050958,31]
[312673293,1706142683452,-500.0,0.00050958,31]
[312673294,1706142683461,-210.6,0.00050958,31]
[312673295,1706142683470,-710.01,0.00050958,31]
[312673296,1706142683479,-1407.74,0.00050958,31]
[312673297,1706142683488,-500.0,0.00050958,31]
[312673298,1706142683497,-5543.02,0.00050958,31]
[312673299,1706142683506,-194.2302429,0.00050958,31]
[312673300,1706142683515,-500.0,0.00050958,31]
[312673301,1706142683525,-500.0,0.00050958,31]
[312673302,1706142683534,-2066.55,0.00050958,31]
[312673303,1706142683544,-620.76,0.00050958,31]
[312673304,1706142683553,-1016.7,0.00050958,31]
[312673305,1706142683566,-1226.31,0.00050958,31]
[312673306,1706142683575,-500.0,0.00050958,31]
[312673307,1706142683584,-563.82,0.00050958,31]
[312673308,1706142683594,-552.79,0.00050958,31]
[312673309,1706142683603,-742.38,0.00050958,31]
[312673310,1706142683612,-500.0,0.00050958,31]
[312673311,1706142683622,-547.01,0.00050958,31]
[312673312,1706142683631,-500.0,0.00050958,31]
[312673313,1706142683641,-3013.17,0.00050958,31]
[312673314,1706142683650,-514.66,0.00050958,31]
[312673315,1706142683660,-540.87,0.00050958,31]
[312673316,1706142683669,-712.54,0.00050958,31]
[312673317,1706142683678,-2280.94,0.00050958,31]
[312673318,1706142683687,-950.67,0.00050958,31]
[312673319,1706142683697,-778.86,0.00050958,31]
[312673320,1706142683706,-500.0,0.00050958,31]
[312673321,1706142683716,-495.59624304,0.00050958,31]
[312673322,1706142683725,-500.0,0.00050958,31]
[312673323,1706142683734,-500.0,0.00050958,31]
[312673324,1706142683743,-500.0,0.00050958,31]
[312673325,1706142683753,-500.0,0.00050958,31]
[312673326,1706142683762,-1663.46,0.00050958,31]
[312673327,1706142683772,-649.21,0.00050958,31]
[312673328,1706142683781,-500.0,0.00050958,31]
[312673329,1706142683790,-1247.69,0.00050958,31]
[312673330,1706142683800,-787.85,0.00050958,31]
[312673331,1706142683813,-1073.61,0.00050958,31]
[312673332,1706142683824,-500.0,0.00050958,31]
[312673333,1706142683833,-500.0,0.00050958,31]
[312673334,1706142683844,-500.0,0.00050958,31]
[312673335,1706142683853,-500.0,0.00050958,31]
[312673336,1706142683863,-500.0,0.00050958,31]
[312673337,1706142683873,-1265.65,0.00050958,31]
[312673338,1706142683882,-618.27,0.00050958,31]
[312673339,1706142683891,-500.0,0.00050958,31]
[312673340,1706142683901,-500.0,0.00050958,31]
[312673341,1706142683911,-3061.04,0.00050958,31]
[312673342,1706142683920,-2426.6,0.00050958,31]
[312673343,1706142683929,-500.0,0.00050958,31]
[312673344,1706142683938,-1315.35,0.00050958,31]
[312673345,1706142683947,-700.1,0.00050958,31]
[312673346,1706142683956,-706.67,0.00050958,31]
[312673347,1706142683965,-500.0,0.00050958,31]
[312673348,1706142683975,-660.57,0.00050958,31]
[312673349,1706142683984,-500.0,0.00050958,31]
[312673350,1706142683994,-500.0,0.00050958,31]
[312673351,1706142684003,-733.61,0.00050958,31]
[312673352,1706142684013,-860.59,0.00050958,31]
[312673353,1706142684022,-1000.0,0.00050958,7]
[312673354,1706142684031,-553.53,0.00050958,31]
[312673355,1706142684041,-605.74,0.00050958,31]
[312673356,1706142684050,-501.79,0.00050958,31]
[312673357,1706142684062,-500.0,0.00050958,31]
[312673358,1706142684071,-500.0,0.00050958,31]
[312673359,1706142684080,-564.19,0.00050958,31]
[312673360,1706142684089,-500.0,0.00050958,31]
[312673361,1706142684098,-740.74,0.00050958,31]
[312673362,1706142684107,-500.0,0.00050958,31]
[312673363,1706142684116,-1295.4,0.00050958,31]
[312673364,1706142684126,-519.74,0.00050958,31]
[312673365,1706142684135,-500.0,0.00050958,31]
[312673366,1706142684144,-500.0,0.00050958,31]
[312673367,1706142684153,-500.0,0.00050958,31]
[312673368,1706142684162,-649.59,0.00050958,31]
[312673369,1706142684171,-500.0,0.00050958,31]
[312673370,1706142684179,-537.1,0.00050958,31]
[312673371,1706142684189,-599.29,0.00050958,31]
[312673372,1706142684198,-765.11,0.00050958,31]
[312673373,1706142684207,-3710.41,0.00050958,31]
[312673374,1706142684216,-500.0,0.00050958,31]
[312673375,1706142684225,-500.0,0.00050958,31]
[312673376,1706142684234,-500.0,0.00050958,31]
[312673377,1706142684244,-1451.54,0.00050958,31]
[312673378,1706142684253,-500.0,0.00050958,31]
[312673379,1706142684262,-737.72,0.00050958,31]
[312673380,1706142684271,-658.3,0.00050958,31]
[312673381,1706142684285,-500.0,0.00050958,31]
[312673382,1706142684294,-500.0,0.00050958,31]
[312673383,1706142684303,-1987.70230644,0.00050958,14]
[312673384,1706142684314,-500.0,0.00050958,31]
[312673385,1706142684322,-748.16,0.00050958,31]
[312673386,1706142684331,-536.66,0.00050958,31]
[312673387,1706142684340,-500.0,0.00050958,31]
[312673388,1706142684349,-655.7,0.00050958,31]
[312673389,1706142684358,-937.73,0.00050958,2]
[312673390,1706142684366,-678.69,0.00050958,31]
[312673391,1706142684375,-500.0,0.00050958,31]
[312673392,1706142684384,-500.0,0.00050958,31]
[312673393,1706142684394,-764.66,0.00050958,31]
[312673394,1706142684403,-673.27,0.00050958,31]
[312673395,1706142684412,-797.85,0.00050958,31]
[312673396,1706142684421,-820.44,0.00050958,31]
[312673397,1706142684430,-500.0,0.00050958,31]
[312673398,1706142684439,-500.0,0.00050958,31]
[312673399,1706142684448,-500.0,0.00050958,31]
[312673400,1706142684457,-500.0,0.00050958,31]
[312673401,1706142684466,-618.86,0.00050958,31]
[312673402,1706142684475,-515.5,0.00050958,31]
[312673403,1706142684484,-500.0,0.00050958,31]
[312673404,1706142684494,-792.67,0.00050958,31]
[312673405,1706142684503,-1129.79,0.00050958,31]
[312673406,1706142684512,-717.84,0.00050958,31]
[312673407,1706142684521,-500.0,0.00050958,31]
[312673408,1706142684531,-500.0,0.00050958,31]
[312673409,1706142684540,-510.96,0.00050958,31]
[312673410,1706142684549,-500.0,0.00050958,31]
[312673411,1706142684560,-600.26,0.00050958,31]
[312673412,1706142684569,-689.9,0.00050958,31]
[312673413,1706142684578,-500.0,0.00050958,31]
[312673414,1706142684587,-594.93,0.00050958,2]
[312673415,1706142684596,-738.6,0.00050958,31]
[312673416,1706142684606,-724.18,0.00050958,31]
[312673417,1706142684615,-757.86,0.00050958,2]
[312673418,1706142684624,-754.82,0.00050958,31]
[312673419,1706142684634,-1187.72,0.00050958,31]
[312673420,1706142684643,-500.0,0.00050958,31]
[312673421,1706142684653,-500.0,0.00050958,31]
[312673422,1706142684662,-500.0,0.00050958,31]
[312673423,1706142684671,-1281.32,0.00050958,31]
[312673424,1706142684682,-2728.94,0.00050958,31]
[312673425,1706142684691,-557.24,0.00050958,31]
[312673426,1706142684701,-151.0,0.00050958,14]
[312673427,1706142684710,-151.0,0.00050958,14]
[312673428,1706142684719,-1825.38,0.00050958,5]
[312673429,1706142684730,-182.63652062,0.00051,30]
[312673430,1706142684740,-307.07348604,0.00051,45]
[312673431,1706142684749,-14486.50215289,0.00051,2]
[312673432,1706142684759,-600.0,0.00051,52]
[312673433,1706142684768,-388.06669423,0.00051,30]
[312673434,1706142684778,-164.0,0.00051,120]
[312673435,1706142684787,-210.0,0.00051,120]
[312673436,1706142684797,-392.16327829,0.00051009,60]
[312673437,1706142684807,-164.81285387,0.00051024,60]
[312673438,1706142684817,-1414.43386236,0.00051024,60]
[312673439,1706142684827,-154.34713497,0.00051032,60]
[312673440,1706142684836,-167.31571157,0.00051043,60]
[312673441,1706142684845,-1414.43386236,0.00051046,60]
[312673442,1706142684855,-374.74972718,0.00051066,60]
[312673443,1706142684864,-174.84205514,0.00051068,60]
[312673444,1706142684873,-158.39181887,0.0005107,60]
[312673445,1706142684883,-164.81285387,0.00051085,60]
[312673446,1706142684893,-7111.0,0.0005109,2]
[312673447,1706142684903,-4441.0,0.0005109,2]
[312673448,1706142684912,-487.42349504,0.0005113,60]
[312673449,1706142684921,-392.16327829,0.00051132,60]
[312673450,1706142684930,-4622.0556,0.00051132,2]
[312673451,1706142684939,-8252.4018,0.00051132,2]
[312673452,1706142684949,-245000.0,0.00051132,2]
[312673453,1706142684958,-392.16327829,0.00051142,60]
[312673454,1706142684968,-150.37716717,0.00051151,60]
[312673455,1706142684978,-150.37716717,0.00051167,60]
[312673456,1706142684987,-153.21386405,0.00051168,60]
[312673457,1706142684996,-153.95702125,0.00051173,60]
[312673458,1706142685006,-150.37716717,0.00051177,60]
[312673459,1706142685016,-153.21386405,0.00051186,60]
[312673460,1706142685025,-374.74972718,0.00051188,60]
[312673461,1706142685035,-204.0,0.0005119,2]
[312673462,1706142685045,-206.21,0.000512,7]
[312673463,1706142685055,-167.05741097,0.000512,60]
[312673464,1706142685066,-150.0,0.00051231,11]
[312673465,1706142685076,-500.0,0.00051232,31]
[312673466,1706142685085,-564.17363692,0.00051232,31]
[312673467,1706142685095,-595.87,0.00051232,31]
[312673468,1706142685104,-500.0,0.00051232,31]
[312673469,1706142685113,-500.0,0.00051232,31]
[312673470,1706142685124,-150.0,0.00051232,31]
[312673471,1706142685133,-545.8,0.00051232,31]
[312673472,1706142685142,-500.0,0.00051232,31]
[312673473,1706142685152,-500.0,0.00051232,31]
[312673474,1706142685162,-500.0,0.00051232,31]
[312673475,1706142685171,-500.0,0.00051232,31]
[312673476,1706142685181,-500.0,0.00051232,31]
[312673477,1706142685191,-244.91376974,0.00051232,31]
[312673478,1706142685200,-500.0,0.00051232,31]
[312673479,1706142685209,-500.0,0.00051232,31]
[312673480,1706142685219,-500.0,0.00051232,31]
[312673481,1706142685229,-500.0,0.00051232,31]
[312673482,1706142685238,-500.0,0.00051232,31]
[312673483,1706142685248,-500.0,0.00051232,31]
[312673484,1706142685257,-500.0,0.00051232,31]
[312673485,1706142685267,-500.0,0.00051232,31]
[312673486,1706142685276,-500.0,0.00051232,31]
[312673487,1706142685286,-500.0,0.00051232,31]
[312673488,1706142685295,-263.69859935,0.00051232,31]
[312673489,1706142685305,-500.0,0.00051232,31]
[312673490,1706142685315,-500.0,0.00051232,31]
[312673491,1706142685325,-500.0,0.00051232,31]
[312673492,1706142685335,-500.0,0.00051232,31]
[312673493,1706142685344,-603.2317633,0.00051232,31]
[312673494,1706142685353,-500.0,0.00051232,31]
[312673495,1706142685363,-500.0,0.00051232,31]
[312673496,1706142685372,-500.0,0.00051232,31]
[312673497,1706142685382,-641.85552306,0.00051232,31]
[312673498,1706142685391,-500.0,0.00051232,31]
[312673499,1706142685401,-222.06529214,0.00051232,31]
[312673500,1706142685410,-500.0,0.00051232,31]
[312673501,1706142685420,-537.4849787,0.00051232,31]
[312673502,1706142685429,-500.0,0.00051232,31]
[312673503,1706142685439,-500.0,0.00051232,31]
[312673504,1706142685449,-500.0,0.00051232,31]
[312673505,1706142685459,-500.0,0.00051232,20]
[312673506,1706142685469,-500.0,0.00051232,31]
[312673507,1706142685478,-241.735348,0.00051232,31]
[312673508,1706142685488,-500.0,0.00051232,31]
[312673509,1706142685497,-637.68126665,0.00051232,31]
[312673510,1706142685506,-500.0,0.00051232,31]
[312673511,1706142685516,-500.0,0.00051232,14]
[312673512,1706142685526,-500.0,0.00051232,31]
[312673513,1706142685535,-500.0,0.00051232,31]
[312673514,1706142685545,-500.0,0.00051232,31]
[312673515,1706142685554,-500.0,0.00051232,31]
[312673516,1706142685564,-500.0,0.00051232,31]
[312673517,1706142685574,-500.0,0.00051232,31]
[312673518,1706142685584,-500.0,0.00051232,31]